bitfinex/quotes_SOLUSD_20250522
["timestamp","ask_amount","ask_price","bid_price","bid_amount"]
[1747933557928,15.54626502,178.48,178.44,37.8]
[1747933558228,20.20931462,178.49,178.44,37.8]
[1747933558547,15.54626502,178.48,178.44,37.8]
[1747933559043,15.54626502,178.48,178.42,37.8]
[1747933559423,20.20931462,178.49,178.42,37.8]
[1747933559633,15.54626502,178.48,178.42,37.8]
[1747933561250,19.60894167,178.49,178.43,0.14216157]
[1747933561627,35.15520669,178.49,178.43,0.14216157]
[1747933561855,15.54626502,178.47,178.42,37.8]
[1747933562244,15.54626502,178.48,178.42,37.8]
[1747933562937,15.54626502,178.48,178.43,37.8]
[1747933563136,35.15520669,178.49,178.43,37.8]
[1747933563339,19.60894167,178.49,178.43,37.8]
[1747933563530,35.15520669,178.49,178.43,37.8]
[1747933564052,19.60894167,178.49,178.43,37.8]
[1747933564546,35.15520669,178.49,178.43,37.8]
[1747933566654,19.60894167,178.49,178.43,37.8]
[1747933566865,5.60255476,178.49,178.44,0.14216157]
[1747933567431,30.15119066,178.52,178.44,0.14216157]
[1747933567432,5.60192706,178.51,178.44,0.14216157]
[1747933568131,5.60192706,178.51,178.46,0.14216157]
[1747933569242,5.60192706,178.51,178.48,26.0]
[1747933569656,5.60161326,178.52,178.48,26.0]
[1747933569832,5.60141501,178.53,178.48,26.0]
[1747933570035,5.60141501,178.53,178.49,37.78]
[1747933571064,19.60125447,178.56,178.49,71.36]
[1747933571240,35.14751949,178.56,178.5,26.0]
[1747933571756,17.61702526,178.55,178.49,71.36]
[1747933571959,15.54626502,178.52,178.5,37.78]
[1747933572338,15.54626502,178.53,178.5,37.78]
[1747933572546,15.54626502,178.54,178.5,37.78]
[1747933572952,4.13960194,178.53,178.5,37.78]
[1747933573638,5.60098577,178.54,178.5,37.78]
[1747933575030,15.54626502,178.55,178.5,37.78]
[1747933576053,5.60098577,178.54,178.5,37.78]
[1747933577258,35.14971522,178.54,178.5,37.78]
[1747933578248,15.54626502,178.53,178.5,37.78]
[1747933578447,15.54626502,178.53,178.47,0.14216157]
[1747933578669,15.54626502,178.53,178.48,37.78]
[1747933579168,35.14971522,178.54,178.48,37.78]
[1747933582370,14.00246443,178.54,178.48,37.78]
[1747933582877,21.1469371,178.55,178.49,0.14216157]
[1747933583038,5.60067208,178.55,178.49,0.14216157]
[1747933583238,15.54626502,178.54,178.49,0.14216157]
[1747933583465,15.54626502,178.54,178.48,37.78]
[1747933583663,19.60235228,178.55,178.48,37.78]
[1747933583868,15.54626502,178.54,178.48,37.78]
[1747933584563,5.6012995,178.53,178.48,37.78]
[1747933584969,19.60454825,178.53,178.48,37.78]
[1747933586293,5.6012995,178.53,178.48,37.78]
[1747933586467,5.6012995,178.53,178.49,0.14216157]
[1747933586868,21.1469371,178.55,178.49,0.14216157]
[1747933587285,5.60067208,178.55,178.49,0.14216157]
[1747933588290,21.1469371,178.55,178.49,0.14216157]
[1747933588808,5.60067208,178.55,178.49,0.14216157]
[1747933589774,5.60067208,178.55,178.49,5.74460936]
[1747933590297,15.54626502,178.59,178.49,5.74460936]
[1747933590480,41.54626502,178.59,178.49,88.04460936]
[1747933591798,5.59973121,178.58,178.49,88.04460936]
[1747933592197,19.59905924,178.58,178.49,88.04460936]
[1747933592501,19.59905924,178.58,178.51,0.14216157]
[1747933592706,19.59905924,178.58,178.53,0.14216157]
[1747933592879,19.59905924,178.58,178.54,37.76]
[1747933593281,5.59973121,178.58,178.54,37.76]
[1747933594090,35.14532426,178.58,178.54,37.76]
[1747933594285,19.59905924,178.58,178.54,37.76]
[1747933594880,5.59973121,178.58,178.54,37.76]
[1747933595298,19.59796181,178.59,178.54,37.76]
[1747933597005,13.99854415,178.59,178.54,37.76]
[1747933598706,5.59910414,178.6,178.54,37.76]
[1747933599084,5.59910414,178.6,178.55,0.14216157]
[1747933599299,5.59910414,178.6,178.56,33.58]
[1747933601126,19.59686449,178.6,178.56,33.58]
[1747933601299,35.14312951,178.6,178.56,33.58]
[1747933601816,15.54626502,178.57,178.51,82.3]
[1747933602015,15.54626502,178.56,178.53,37.74]
[1747933602192,15.54626502,178.55,178.53,37.74]
[1747933602792,5.60098577,178.54,178.53,37.74]
[1747933603122,35.14971522,178.54,178.48,37.74]
[1747933603300,15.54626502,178.52,178.48,37.74]
[1747933603829,15.54626502,178.52,178.47,37.74]
[1747933604924,5.60192706,178.51,178.47,37.74]
[1747933611241,5.60161326,178.52,178.47,37.74]
[1747933614335,5.60161326,178.52,178.47,71.32]
[1747933616340,21.14787828,178.52,178.47,71.32]
[1747933616636,5.60161326,178.52,178.47,71.32]
[1747933616805,5.60108463,178.54,178.48,0.14216157]
[1747933621941,7.11976337,178.55,178.48,0.14216157]
[1747933622236,1.519,178.55,178.48,5.74492962]
[1747933622415,5.60045357,178.56,178.48,5.74492962]
[1747933623533,21.14599623,178.58,178.48,5.74492962]
[1747933623831,21.14599623,178.58,178.48,88.04492962]
[1747933626257,5.59973121,178.58,178.48,88.04492962]
[1747933626577,5.59973121,178.58,178.48,94.45992962]
[1747933628737,5.59973121,178.58,178.48,12.15992962]
[1747933630858,21.14599623,178.58,178.48,12.15992962]
[1747933631665,21.14599623,178.58,178.48,94.45992962]
[1747933632449,5.59973121,178.58,178.48,94.45992962]
[1747933633939,21.14599623,178.58,178.48,94.45992962]
[1747933634749,15.54626502,178.57,178.48,6.55716157]
[1747933635069,15.54626502,178.54,178.49,37.76]
[1747933637067,5.6012995,178.53,178.49,37.76]
[1747933638258,21.14756452,178.53,178.49,37.76]
[1747933638460,1.6607,178.52,178.49,37.76]
[1747933639171,5.60192706,178.51,178.49,37.76]
[1747933649211,5.60192706,178.51,178.47,37.78]
[1747933653726,15.54626502,178.5,178.41,7.05887242]
[1747933653912,15.54626502,178.48,178.42,71.36]
[1747933654430,26.0,178.47,178.41,7.05887242]
[1747933654631,17.15116502,178.45,178.4,37.78]
[1747933654835,1.6049,178.45,178.4,37.78]
[1747933656042,5.60412463,178.44,178.4,37.78]
[1747933681070,5.60412463,178.44,178.39,71.38]
[1747933683785,5.60412463,178.44,178.37,82.3]
[1747933683990,29.55749821,178.41,178.37,37.78]
[1747933684364,55.55749821,178.41,178.37,37.78]
[1747933684559,9.93976378,178.4,178.37,37.78]
[1747933684860,9.93976378,178.39,178.37,37.78]
[1747933685499,26.0,178.38,178.37,37.78]
[1747933685660,43.20448957,178.38,178.32,71.38]
[1747933685993,5.60632393,178.37,178.32,37.78]
[1747933686474,19.62213376,178.37,178.32,37.78]
[1747933686695,15.54478957,178.36,178.32,37.78]
[1747933687066,35.16692333,178.37,178.32,37.78]
[1747933688481,15.54478957,178.36,178.27,0.14216157]
[1747933688685,15.54478957,178.34,178.28,37.78]
[1747933689585,38.87215557,178.37,178.28,37.78]
[1747933689586,19.62433417,178.35,178.28,37.78]
[1747933689783,15.54478957,178.33,178.28,37.78]
[1747933689985,15.54478957,178.34,178.28,37.78]
[1747933690294,5.60695262,178.35,178.28,37.78]
[1747933691490,21.15174219,178.35,178.28,37.78]
[1747933691678,35.16912374,178.35,178.27,0.14216157]
[1747933691883,15.54478957,178.33,178.28,37.76]
[1747933692786,15.54478957,178.34,178.28,37.76]
[1747933693087,35.16912374,178.35,178.28,37.76]
[1747933693387,19.62433417,178.35,178.28,37.76]
[1747933693987,35.16912374,178.35,178.28,37.76]
[1747933694798,15.54478957,178.34,178.28,37.76]
[1747933695305,35.16912374,178.35,178.28,37.76]
[1747933696898,15.54478957,178.34,178.28,37.76]
[1747933698480,15.54478957,178.33,178.28,37.76]
[1747933698708,5.60852495,178.3,178.28,37.76]
[1747933703092,5.60829077,178.31,178.28,37.76]
[1747933703883,5.60829077,178.31,178.28,63.76]
[1747933704090,29.56254111,178.35,178.28,63.76]
[1747933704091,5.60726701,178.34,178.28,63.76]
[1747933706508,21.15205658,178.34,178.28,63.76]
[1747933706998,15.54478957,178.33,178.28,63.76]
[1747933707310,15.54478957,178.32,178.28,63.76]
[1747933707687,15.54478957,178.33,178.28,63.76]
[1747933707902,19.62543455,178.34,178.28,63.76]
[1747933708217,35.17022412,178.34,178.28,63.76]
[1747933708703,15.54478957,178.33,178.28,63.76]
[1747933709685,5.60789591,178.32,178.28,63.76]
[1747933711805,5.60758145,178.33,178.28,63.76]
[1747933712610,5.60758145,178.33,178.28,69.36913262]
[1747933713001,5.60758145,178.33,178.28,63.76]
[1747933713711,19.62433417,178.35,178.28,63.76]
[1747933719824,15.54478957,178.34,178.28,63.76]
[1747933721533,19.62653507,178.33,178.28,63.76]
[1747933722332,35.17132464,178.33,178.28,63.76]
[1747933722504,15.54478957,178.32,178.28,37.76]
[1747933723726,5.60821042,178.31,178.28,37.76]
[1747933724112,47.15299999,178.31,178.28,37.76]
[1747933726540,5.60695262,178.35,178.28,37.76]
[1747933726707,5.60695262,178.35,178.29,6.1091]
[1747933726912,31.60632393,178.37,178.29,6.1091]
[1747933727113,31.60632393,178.37,178.3,0.14216157]
[1747933727323,14.01481308,178.39,178.3,0.14216157]
[1747933727324,5.60569538,178.39,178.31,33.62]
[1747933728009,31.60569538,178.39,178.32,5.60789591]
[1747933728507,3.95140764,178.43,178.33,18.79181043]
[1747933728711,9.55589378,178.43,178.35,0.14216157]
[1747933729043,31.60448614,178.43,178.36,33.62]
[1747933731236,31.60448614,178.43,178.36,39.22659138]
[1747933731636,5.60448614,178.43,178.36,33.62]
[1747933732636,5.60448614,178.43,178.36,39.22658446]
[1747933732844,5.60448614,178.43,178.36,33.62]
[1747933733041,5.60448614,178.43,178.36,39.22660682]
[1747933734353,7.25410009,178.44,178.37,5.74828501]
[1747933735343,7.25410009,178.44,178.37,0.14216157]
[1747933735743,7.25410009,178.44,178.37,5.74845838]
[1747933735913,7.25410009,178.44,178.37,0.14216157]
[1747933736113,7.25410009,178.44,178.37,5.74841757]
[1747933736733,21.26441167,178.44,178.33,6.49351687]
[1747933736951,15.54478957,178.41,178.33,37.74]
[1747933737128,21.86478462,178.44,178.33,37.74]
[1747933737129,15.54478957,178.42,178.33,37.74]
[1747933738021,15.54478957,178.41,178.33,37.74]
[1747933738420,15.54478957,178.42,178.33,37.74]
[1747933738837,35.162524,178.41,178.33,37.74]
[1747933739551,15.54478957,178.4,178.33,37.74]
[1747933739764,19.61773443,178.41,178.33,37.74]
[1747933741816,19.61773443,178.41,178.34,18.79181043]
[1747933741817,5.60506698,178.41,178.34,18.79181043]
[1747933742834,5.60443871,178.43,178.34,24.39898304]
[1747933745642,5.60443871,178.43,178.34,106.69898304]
[1747933746039,19.61553549,178.43,178.34,106.69898304]
[1747933746345,19.61553549,178.43,178.34,101.09181043]
[1747933747257,5.60443871,178.43,178.34,106.69898778]
[1747933748157,5.60443871,178.43,178.34,101.09181043]
[1747933748158,19.61553549,178.43,178.34,101.09181043]
[1747933748648,19.61553549,178.43,178.34,18.79181043]
[1747933749751,19.61553549,178.43,178.34,24.39904846]
[1747933750164,19.61553549,178.43,178.34,18.79181043]
[1747933750842,19.61553549,178.43,178.35,33.6]
[1747933752058,26.0,178.42,178.35,33.6]
[1747933752764,5.60506698,178.41,178.35,33.6]
[1747933754926,31.60443871,178.43,178.35,33.6]
[1747933755742,19.61553549,178.43,178.35,39.20689029]
[1747933757346,19.61553549,178.43,178.35,33.6]
[1747933757788,19.61553549,178.43,178.35,39.20690968]
[1747933757954,5.60443871,178.43,178.35,39.20690968]
[1747933758662,5.60443871,178.43,178.36,18.64964886]
[1747933758958,5.60443871,178.43,178.37,37.7]
[1747933761047,19.61553549,178.43,178.37,37.7]
[1747933763567,19.61553549,178.43,178.37,63.7]
[1747933766268,5.60443871,178.43,178.37,63.7]
[1747933768747,5.60443871,178.43,178.37,69.30628544]
[1747933769368,5.60443871,178.43,178.37,63.7]
[1747933771781,19.61553549,178.43,178.37,37.7]
[1747933771957,15.54478957,178.41,178.37,37.7]
[1747933772159,15.54478957,178.4,178.33,33.6]
[1747933772972,19.61993384,178.39,178.33,33.6]
[1747933773774,19.61993384,178.39,178.32,63.7]
[1747933774078,1.586,178.38,178.32,63.7]
[1747933774377,1.586,178.38,178.32,37.7]
[1747933774875,5.60632393,178.37,178.32,37.7]
[1747933775272,19.62213376,178.37,178.32,37.7]
[1747933778185,5.60632393,178.37,178.32,37.7]
[1747933780080,1.586,178.38,178.33,18.64964886]
[1747933780266,1.6487,178.42,178.35,18.64964886]
[1747933781785,7.25353248,178.42,178.35,24.25654071]
[1747933783768,7.25353248,178.42,178.37,18.64964886]
[1747933783969,7.25353248,178.42,178.38,37.66]
[1747933787678,7.25353248,178.42,178.38,71.26]
[1747933788685,5.60412463,178.44,178.39,18.64964886]
[1747933789067,5.60412463,178.44,178.38,71.26]
[1747933792275,19.61443621,178.44,178.38,71.26]
[1747933794573,19.61443621,178.44,178.38,37.66]
[1747933795673,15.54478957,178.43,178.38,37.66]
[1747933796483,15.54478957,178.42,178.38,37.66]
[1747933796676,19.6166349,178.42,178.38,37.66]
[1747933797085,35.16142447,178.42,178.38,37.66]
[1747933797278,61.16142447,178.42,178.38,37.66]
[1747933798770,45.6166349,178.42,178.38,37.66]
[1747933799216,61.16142447,178.42,178.38,37.66]
[1747933800209,15.54478957,178.41,178.38,37.66]
[1747933800774,61.16142447,178.42,178.38,37.66]
[1747933801301,5.60538116,178.4,178.38,37.66]
[1747933801808,22.76287073,178.4,178.38,37.66]
[1747933801972,36.77632364,178.4,178.33,37.66]
[1747933802294,15.54478957,178.39,178.33,37.66]
[1747933802482,21.23153407,178.4,178.33,37.66]
[1747933806494,15.54478957,178.38,178.33,37.66]
[1747933808707,19.62213376,178.37,178.33,37.66]
[1747933810878,14.01580983,178.37,178.33,37.66]
[1747933816092,29.5605994,178.37,178.33,37.66]
[1747933816487,15.54478957,178.36,178.33,37.66]
[1747933816689,15.54478957,178.36,178.29,209.68]
[1747933817503,15.54478957,178.35,178.29,209.68]
[1747933818303,19.62543455,178.34,178.29,209.68]
[1747933819801,35.17022412,178.34,178.28,37.62]
[1747933820113,5.60821042,178.31,178.28,37.62]
[1747933820321,21.15299999,178.31,178.28,37.62]
[1747933820520,18.64964886,178.3,178.23,37.62]
[1747933820814,17.05058957,178.26,178.23,37.62]
[1747933820990,15.54478957,178.24,178.19,7.86611949]
[1747933821192,15.54478957,178.23,178.19,7.86611949]
[1747933821384,15.54478957,178.22,178.19,7.86611949]
[1747933822021,15.54478957,178.21,178.19,7.86611949]
[1747933822341,5.61167227,178.2,178.19,7.86611949]
[1747933822524,5.61167227,178.2,178.18,37.62]
[1747933824321,5.61135738,178.21,178.18,37.62]
[1747933828252,5.6109637,178.23,178.18,37.62]
[1747933830229,137.2,178.25,178.18,43.23209984]
[1747933830422,5.61012541,178.25,178.19,33.62]
[1747933830852,5.6097825,178.27,178.19,45.88234969]
[1747933831067,5.6097825,178.27,178.2,0.14216157]
[1747933831850,31.6097825,178.27,178.2,0.14216157]
[1747933832051,31.6097825,178.27,178.21,5.61135738]
[1747933832541,26.0,178.27,178.21,5.61135738]
[1747933832930,5.60883953,178.29,178.21,5.61135738]
[1747933833339,26.0,178.28,178.21,5.61135738]
[1747933833558,26.0,178.28,178.19,40.2705]
[1747933834244,5.60946878,178.27,178.19,45.88244427]
[1747933834852,31.60883953,178.29,178.2,0.14216157]
[1747933836357,31.60883953,178.29,178.21,5.61135738]
[1747933836741,31.60883953,178.29,178.22,0.14216157]
[1747933836948,7.15821119,178.3,178.22,0.14216157]
[1747933838351,7.15821119,178.3,178.23,5.61072771]
[1747933838671,7.15821119,178.3,178.24,37.64]
[1747933843668,36.72431315,178.3,178.19,26.0]
[1747933843886,15.54478957,178.29,178.2,37.64]
[1747933844374,5.60915413,178.28,178.2,37.64]
[1747933847291,5.60915413,178.28,178.2,43.25154647]
[1747933848586,5.60883953,178.29,178.2,43.25154647]
[1747933850711,5.60883953,178.29,178.21,5.75345623]
[1747933851903,7.15814438,178.3,178.24,0.14216157]
[1747933852075,5.60789591,178.32,178.24,0.14216157]
[1747933852583,5.60789591,178.32,178.24,18.933972]
[1747933853183,5.60789591,178.32,178.24,23.50046062]
[1747933853358,5.60789591,178.32,178.26,0.14216157]
[1747933853559,5.60789591,178.32,178.27,37.58]
[1747933854365,19.6276357,178.32,178.27,37.58]
[1747933854784,26.0,178.27,178.15,12.25687703]
[1747933854995,26.0,178.25,178.17,37.58]
[1747933855377,5.61041292,178.24,178.17,45.44611949]
[1747933857098,19.63644523,178.24,178.17,45.44611949]
[1747933857480,36.8305348,178.24,178.17,45.44611949]
[1747933857674,15.54478957,178.23,178.17,45.44611949]
[1747933857877,36.8305348,178.24,178.17,37.58]
[1747933858880,64.88259943,178.24,178.17,37.58]
[1747933859675,36.8305348,178.24,178.17,37.58]
[1747933859881,21.28574523,178.24,178.17,37.58]
[1747933861004,7.25971292,178.24,178.17,37.58]
[1747933861183,7.25971292,178.24,178.18,33.62]
[1747933861798,21.28574523,178.24,178.18,33.62]
[1747933864506,7.25971292,178.24,178.18,33.62]
[1747933865180,21.28574523,178.24,178.18,33.62]
[1747933868607,21.28574523,178.24,178.18,59.62]
[1747933869083,21.28574523,178.24,178.18,26.0]
[1747933869284,36.8305348,178.24,178.18,26.0]
[1747933869590,15.54478957,178.22,178.17,37.58]
[1747933869787,19.63975084,178.21,178.17,37.58]
[1747933871016,5.61135738,178.21,178.17,37.58]
[1747933871397,5.61100211,178.23,178.17,43.19259541]
[1747933871583,5.60978346,178.26,178.17,43.19259541]
[1747933871784,5.60946878,178.27,178.2,26.0]
[1747933872099,5.60946878,178.27,178.22,26.0]
[1747933872299,5.60946878,178.27,178.23,37.6]
[1747933876682,19.63314073,178.27,178.23,37.6]
[1747933881806,19.63314073,178.27,178.21,37.54]
[1747933883718,5.60946878,178.27,178.24,26.0]
[1747933884919,5.60946878,178.27,178.22,26.0]
[1747933885212,19.63314073,178.27,178.22,26.0]
[1747933885919,19.63314073,178.27,178.21,37.54]
[1747933887291,5.60946878,178.27,178.21,37.54]
[1747933887493,5.60946878,178.27,178.24,26.0]
[1747933890631,14.02182525,178.3,178.25,26.0]
[1747933891529,5.60821042,178.31,178.23,5.61065222]
[1747933891711,5.60821042,178.31,178.24,26.14216157]
[1747933891913,5.60821042,178.31,178.24,32.61846157]
[1747933892614,5.60821042,178.31,178.24,38.22870624]
[1747933893533,5.60821042,178.31,178.24,32.61846157]
[1747933895137,5.60821042,178.31,178.24,38.22884447]
[1747933895525,7.11009472,178.32,178.24,120.52884447]
[1747933895723,5.60695262,178.35,178.26,0.14216157]
[1747933896041,5.60695262,178.35,178.3,26.0]
[1747933897129,5.60663825,178.36,178.28,0.14216157]
[1747933898336,5.60663825,178.36,178.28,5.75122739]
[1747933898844,5.60663825,178.36,178.28,0.14216157]
[1747933899012,19.62323389,178.36,178.27,37.52]
[1747933899211,19.62323389,178.36,178.27,71.14]
[1747933903319,19.62323389,178.36,178.27,76.7493689]
[1747933903634,5.60663825,178.36,178.3,26.0]
[1747933904048,1.6017,178.37,178.31,0.14216157]
[1747933904049,7.20813062,178.37,178.31,0.14216157]
[1747933904356,5.60538116,178.4,178.34,0.14216157]
[1747933904519,5.60538116,178.4,178.34,37.66216157]
[1747933906741,19.61883407,178.4,178.34,37.66216157]
[1747933907741,5.60538116,178.4,178.34,37.66216157]
[1747933909019,5.60538116,178.4,178.34,43.26931079]
[1747933910443,14.01160931,178.43,178.34,43.26931079]
[1747933912435,14.01160931,178.43,178.34,37.52]
[1747933912627,15.54478957,178.42,178.34,37.52]
[1747933912952,29.55639888,178.43,178.34,37.52]
[1747933915045,35.16083759,178.43,178.34,37.52]
[1747933915250,26.0,178.42,178.34,37.52]
[1747933916949,26.0,178.42,178.35,0.14216157]
[1747933917318,5.60506698,178.41,178.35,0.14216157]
[1747933917749,31.60443871,178.43,178.35,0.14216157]
[1747933918329,5.60443871,178.43,178.35,82.44216157]
[1747933918831,5.60412463,178.44,178.35,88.04896262]
[1747933919241,19.61443621,178.44,178.35,82.44216157]
[1747933919550,19.61443621,178.44,178.35,88.04906372]
[1747933920748,19.61443621,178.44,178.35,88.04906944]
[1747933922154,19.61443621,178.44,178.35,82.44216157]
[1747933922989,19.61443621,178.44,178.35,88.0490877]
[1747933923454,19.61443621,178.44,178.35,82.44216157]
[1747933923751,19.61443621,178.44,178.35,88.04906018]
[1747933924052,5.60412463,178.44,178.36,18.79181043]
[1747933924230,5.60412463,178.44,178.38,0.14216157]
[1747933927847,5.60412463,178.44,178.37,33.6]
[1747933928831,5.60412463,178.44,178.38,0.14216157]
[1747933929053,5.60369818,178.46,178.38,25.296272]
[1747933929360,14.00757816,178.48,178.39,5.60569538]
[1747933929535,14.00757816,178.48,178.41,0.14216157]
[1747933929933,14.00757816,178.48,178.42,37.44]
[1747933930439,15.54478957,178.46,178.38,37.44]
[1747933930958,14.00757816,178.48,178.39,0.14216157]
[1747933931434,19.61044682,178.48,178.39,24.53950899]
[1747933931947,19.61044682,178.48,178.39,18.933972]
[1747933932966,19.61044682,178.48,178.39,24.5396288]
[1747933933859,19.61044682,178.48,178.38,37.44]
[1747933934067,15.54478957,178.47,178.38,37.44]
[1747933934239,35.15523639,178.48,178.38,37.44]
[1747933935375,35.15523639,178.48,178.38,71.04]
[1747933936282,19.61044682,178.48,178.38,71.04]
[1747933936649,19.61044682,178.48,178.39,0.14216157]
[1747933940862,19.61044682,178.48,178.39,82.44216157]
[1747933941669,26.0,178.45,178.39,82.3]
[1747933941871,15.54478957,178.43,178.38,37.44]
[1747933942260,19.6166349,178.42,178.38,37.44]
[1747933945367,5.60475283,178.42,178.38,37.44]
[1747933947165,5.60443871,178.43,178.38,37.44]
[1747933949269,5.60443871,178.43,178.38,71.04]
[1747933950749,19.61553549,178.43,178.38,71.04]
[1747933951582,19.61553549,178.43,178.38,37.44]
[1747933955068,5.60443871,178.43,178.38,37.44]
[1747933955483,5.60443871,178.43,178.38,41.88749603]
[1747933955681,5.60443871,178.43,178.38,37.44]
[1747933958987,5.60443871,178.43,178.39,37.38]
[1747933960767,7.24459568,178.44,178.39,37.38]
[1747933962786,5.60349658,178.46,178.4,26.14216157]
[1747933963290,5.60349658,178.46,178.43,15.52799087]
[1747933964281,5.60349658,178.46,178.44,15.52799087]
[1747933964686,19.61132023,178.47,178.44,15.52799087]
[1747933972114,5.6031826,178.47,178.45,15.52799087]
[1747933973392,5.6031826,178.47,178.46,15.52799087]
[1747933974176,5.6031826,178.47,178.4,82.44216157]
[1747933974383,5.6031826,178.47,178.44,15.52799087]
[1747933979393,5.6031826,178.47,178.45,15.52799087]
[1747933980406,5.60282029,178.49,178.46,15.52799087]
[1747933980588,5.60282029,178.49,178.48,15.52799087]
[1747933981475,5.60224089,178.5,178.48,15.52799087]
[1747933982308,5.60224089,178.5,178.47,15.52799087]
[1747933982309,19.60784313,178.5,178.47,15.52799087]
[1747933983604,5.60224089,178.5,178.49,15.52799087]
[1747933984709,5.60161326,178.52,178.49,15.52799087]
[1747933985585,5.60161326,178.52,178.5,15.52799087]
[1747933987698,5.60161326,178.52,178.49,15.52799087]
[1747933988080,19.60564642,178.52,178.48,15.52799087]
[1747933988612,19.60564642,178.52,178.49,15.52799087]
[1747933993105,19.60564642,178.52,178.48,15.52799087]
[1747933994700,19.60564642,178.52,178.47,15.52799087]
[1747933994903,19.60564642,178.52,178.48,15.52799087]
[1747933996916,19.60564642,178.52,178.45,37.34]
[1747933996917,35.13363729,178.52,178.45,37.34]
[1747933997097,15.52799087,178.51,178.45,52.86799087]
[1747933997301,15.52799087,178.5,178.45,37.34]
[1747933997504,15.52799087,178.49,178.45,37.34]
[1747933997812,19.60894167,178.49,178.45,52.86799087]
[1747933999307,14.00638691,178.49,178.45,52.86799087]
[1747934001515,14.00638691,178.49,178.46,15.52799087]
[1747934001819,14.00638691,178.49,178.45,52.86799087]
[1747934002526,14.00638691,178.49,178.45,37.34]
[1747934002527,15.52799087,178.46,178.45,37.34]
[1747934003708,21.13148745,178.46,178.45,37.34]
[1747934010940,21.12991793,178.51,178.45,78.86799087]
[1747934011109,21.12991793,178.51,178.45,63.34]
[1747934011314,15.52799087,178.5,178.45,63.34]
[1747934012240,5.60255476,178.49,178.45,63.34]
[1747934012828,5.60255476,178.49,178.48,26.0]
[1747934013337,21.13054563,178.49,178.48,26.0]
[1747934014234,14.00451195,178.52,178.48,26.0]
[1747934014433,15.52799087,178.49,178.48,26.0]
[1747934014742,15.52799087,178.5,178.48,26.0]
[1747934016241,5.60161326,178.52,178.48,26.0]
[1747934016428,15.52799087,178.5,178.48,26.0]
[1747934017837,21.13037826,178.5,178.48,26.0]
[1747934018044,21.12984713,178.52,178.49,26.0]
[1747934018245,5.60185626,178.52,178.49,26.0]
[1747934018545,21.12984713,178.52,178.49,26.0]
[1747934018724,22.7522752,178.53,178.5,26.0]
[1747934019618,7.22428433,178.53,178.5,26.0]
[1747934019819,1.6229,178.53,178.51,26.0]
[1747934020023,15.52799087,178.56,178.51,26.0]
[1747934020241,21.12803567,178.57,178.51,41.52799087]
[1747934020565,15.52799087,178.56,178.51,63.28]
[1747934021230,5.6000448,178.57,178.51,63.28]
[1747934021418,5.60067208,178.55,178.51,63.28]
[1747934023546,5.6000448,178.57,178.51,63.28]
[1747934023747,21.1099312,178.57,178.51,63.28]
[1747934025053,35.1100432,178.57,178.51,63.28]
[1747934025343,19.6001568,178.57,178.51,63.28]
[1747934025536,35.1100432,178.57,178.51,63.28]
[1747934026852,15.5098864,178.55,178.51,63.28]
[1747934027757,5.60098577,178.54,178.51,63.28]
[1747934028447,5.60098577,178.54,178.51,37.28]
[1747934028626,21.11087217,178.54,178.51,63.28]
[1747934029148,5.60098577,178.54,178.51,63.28]
[1747934031346,15.5098864,178.54,178.51,63.28]
[1747934031523,15.5098864,178.53,178.51,63.28]
[1747934031731,15.5098864,178.52,178.51,63.28]
[1747934032130,15.5098864,178.53,178.51,63.28]
[1747934032340,14.0020645,178.55,178.51,63.28]
[1747934032534,15.5098864,178.53,178.51,63.28]
[1747934033447,5.60161326,178.52,178.51,63.28]
[1747934035023,5.6012995,178.53,178.51,63.28]
[1747934036236,21.1111859,178.53,178.51,63.28]
[1747934039046,21.1111859,178.53,178.51,37.28]
[1747934039748,15.53103307,178.53,178.51,37.28]
[1747934040447,5.6012995,178.53,178.51,37.28]
[1747934041560,9.92973357,178.53,178.51,37.28]
[1747934041952,15.51428139,178.53,178.51,37.28]
[1747934042745,5.60161326,178.52,178.51,37.28]
[1747934043343,21.11589465,178.52,178.51,37.28]
[1747934043858,5.60161326,178.52,178.51,37.28]